[Event "Titled Tuesday Blitz March 28 Late 2023"]
[White "Darini, Pouria"]
[Black "Mekhane, Adam"]
[WhiteFideId "12502200"]
[BlackFideId "36050601"]
[WhiteElo "2482"]
[BlackElo "2177"]
[Result "0-1"]
[Round "04"]
[TimeControl "180+2"]
[Date "2023.03.28"]
[WhiteClock "0:00:01"]
[BlackClock "0:00:06"]

1. b3 {[%clk 0:03:00]}  e5 {[%clk 0:02:57]} 2. Bb2 {[%clk 0:03:00]}  Nc6 {[%clk 0:02:58]} 3. c4 {[%clk 0:03:00]}  Nf6 {[%clk 0:02:57]} 4. e3 {[%clk 0:03:01]}  d5 {[%clk 0:02:57]} 5. cxd5 {[%clk 0:03:02]}  Nxd5 {[%clk 0:02:57]} 6. a3 {[%clk 0:03:03]}  Be7 {[%clk 0:02:57]} 7. Nc3 {[%clk 0:03:03]}  O-O {[%clk 0:02:57]} 8. Qc2 {[%clk 0:03:02]}  Be6 {[%clk 0:02:55]} 9. Nf3 {[%clk 0:03:02]}  Nxc3 {[%clk 0:02:49]} 10. Bxc3 {[%clk 0:02:57]}  f6 {[%clk 0:02:43]} 11. Bd3 {[%clk 0:02:58]}  f5 {[%clk 0:02:01]} 12. Nxe5 {[%clk 0:02:54]}  Nxe5 {[%clk 0:02:00]} 13. Bxe5 {[%clk 0:02:55]}  Bf6 {[%clk 0:02:01]} 14. Bxf6 {[%clk 0:02:30]}  Qxf6 {[%clk 0:02:02]} 15. O-O {[%clk 0:02:30]}  Rfd8 {[%clk 0:01:58]} 16. Bc4 {[%clk 0:02:29]}  c6 {[%clk 0:01:57]} 17. d4 {[%clk 0:02:25]}  Bd5 {[%clk 0:01:53]} 18. Rad1 {[%clk 0:01:58]}  Qe6 {[%clk 0:01:36]} 19. Rfe1 {[%clk 0:01:57]}  Qg6 {[%clk 0:01:26]} 20. f3 {[%clk 0:01:43]}  Kh8 {[%clk 0:01:23]} 21. e4 {[%clk 0:01:37]}  fxe4 {[%clk 0:00:49]} 22. fxe4 {[%clk 0:01:38]}  Be6 {[%clk 0:00:43]} 23. Bxe6 {[%clk 0:01:36]}  Qxe6 {[%clk 0:00:43]} 24. d5 {[%clk 0:01:30]}  cxd5 {[%clk 0:00:18]} 25. exd5 {[%clk 0:01:30]}  Qb6+ {[%clk 0:00:19]} 26. Kh1 {[%clk 0:01:31]}  Rac8 {[%clk 0:00:19]} 27. Qd3 {[%clk 0:01:31]}  Qf2 {[%clk 0:00:19]} 28. Rf1 {[%clk 0:01:17]}  Qc2 {[%clk 0:00:16]} 29. d6 {[%clk 0:01:12]}  Qxd3 {[%clk 0:00:15]} 30. Rxd3 {[%clk 0:01:13]}  Rd7 {[%clk 0:00:15]} 31. Kg1 {[%clk 0:00:54]}  Kg8 {[%clk 0:00:15]} 32. Rfd1 {[%clk 0:00:41]}  Kf7 {[%clk 0:00:14]} 33. Kf2 {[%clk 0:00:41]}  Rc6 {[%clk 0:00:14]} 34. Rf3+ {[%clk 0:00:18]}  Ke6 {[%clk 0:00:13]} 35. Rh3 {[%clk 0:00:18]}  h6 {[%clk 0:00:13]} 36. Re3+ {[%clk 0:00:19]}  Kf7 {[%clk 0:00:13]} 37. Rf3+ {[%clk 0:00:18]}  Ke6 {[%clk 0:00:14]} 38. Re3+ {[%clk 0:00:18]}  Kf7 {[%clk 0:00:14]} 39. Red3 {[%clk 0:00:19]}  Ke6 {[%clk 0:00:14]} 40. b4 {[%clk 0:00:18]}  Rcxd6 {[%clk 0:00:14]} 41. Re3+ {[%clk 0:00:18]}  Kf7 {[%clk 0:00:14]} 42. Rc1 {[%clk 0:00:19]}  Rd2+ {[%clk 0:00:13]} 43. Kf3 {[%clk 0:00:19]}  R2d3 {[%clk 0:00:13]} 44. Rc3 {[%clk 0:00:15]}  Rd2 {[%clk 0:00:12]} 45. h4 {[%clk 0:00:12]}  Ra2 {[%clk 0:00:12]} 46. Re4 {[%clk 0:00:11]}  Rad2 {[%clk 0:00:11]} 47. Rf4+ {[%clk 0:00:11]}  Kg6 {[%clk 0:00:10]} 48. Ke3 {[%clk 0:00:11]}  Rd1 {[%clk 0:00:09]} 49. Kf3 {[%clk 0:00:07]}  R1d3+ {[%clk 0:00:09]} 50. Rxd3 {[%clk 0:00:07]}  Rxd3+ {[%clk 0:00:10]} 51. Ke4 {[%clk 0:00:03]}  Rxa3 {[%clk 0:00:10]} 52. g4 {[%clk 0:00:03]}  h5 {[%clk 0:00:09]} 53. g5 {[%clk 0:00:02]}  Rb3 {[%clk 0:00:08]} 54. Kd5 {[%clk 0:00:02]}  a5 {[%clk 0:00:06]} 55. bxa5 {[%clk 0:00:02]}  Rb5+ {[%clk 0:00:06]} 56. Kd6 {[%clk 0:00:02]}  Rxa5 {[%clk 0:00:07]} 57. Kc7 {[%clk 0:00:03]}  Rf5 {[%clk 0:00:07]} 58. Re4 {[%clk 0:00:03]}  Rf3 {[%clk 0:00:06]} 59. Kxb7 {[%clk 0:00:03]}  Kf5 {[%clk 0:00:06]} 60. Re7 {[%clk 0:00:02]}  g6 {[%clk 0:00:06]} 61. Rf7+ {[%clk 0:00:02]}  Kg4 {[%clk 0:00:06]} 62. Rf6 {[%clk 0:00:02]}  Rb3+ {[%clk 0:00:05]} 63. Kc7 {[%clk 0:00:02]}  Kxh4 {[%clk 0:00:05]} 64. Rxg6 {[%clk 0:00:03]}  Rg3 {[%clk 0:00:05]} 65. Kd6 {[%clk 0:00:02]}  Rxg5 {[%clk 0:00:06]} 66. Rf6 {[%clk 0:00:02]}  Ra5 {[%clk 0:00:05]} 67. Rf4+ {[%clk 0:00:01]}  Kg3 {[%clk 0:00:05]} 68. Rf8 {[%clk 0:00:02]}  h4 {[%clk 0:00:06]} 69. Rg8+ {[%clk 0:00:03]}  Kh2 {[%clk 0:00:06]} 70. Ke6 {[%clk 0:00:02]}  h3 {[%clk 0:00:06]} 71. Kf6 {[%clk 0:00:01]}  Kh1 {[%clk 0:00:06]} 72. Rg3 {[%clk 0:00:01]}  h2 {[%clk 0:00:06]} 73. Ke6 {[%clk 0:00:02]}  Ra1 {[%clk 0:00:06]} 74. Ke5 {[%clk 0:00:02]}  Rg1 {[%clk 0:00:06]} 75. Rh3 {[%clk 0:00:02]}  Kg2 {[%clk 0:00:06]} 76. Rxh2+ {[%clk 0:00:01]}  Kxh2 {[%clk 0:00:06]} 0-1


[Site "https://www.chess.com"]

[Event "Titled Tuesday Blitz March 28 Late 2023"]
[White "Smith, Garrett L"]
[Black "Sieciechowicz, Marcin"]
[WhiteFideId "2024829"]
[BlackFideId "1130170"]
[WhiteElo "2325"]
[BlackElo "2302"]
[Result "0-1"]
[Round "04"]
[TimeControl "180+2"]
[Date "2023.03.28"]
[WhiteClock "0:01:12"]
[BlackClock "0:01:13"]

1. e4 {[%clk 0:03:00]}  e6 {[%clk 0:02:59]} 2. d4 {[%clk 0:03:00]}  d5 {[%clk 0:03:00]} 3. Nc3 {[%clk 0:03:00]}  Nf6 {[%clk 0:02:59]} 4. e5 {[%clk 0:03:01]}  Nfd7 {[%clk 0:03:00]} 5. f4 {[%clk 0:03:01]}  c5 {[%clk 0:03:00]} 6. Nf3 {[%clk 0:03:02]}  Nc6 {[%clk 0:03:01]} 7. Be3 {[%clk 0:03:03]}  Qb6 {[%clk 0:03:00]} 8. Na4 {[%clk 0:03:02]}  Qa5+ {[%clk 0:03:00]} 9. c3 {[%clk 0:03:03]}  cxd4 {[%clk 0:03:00]} 10. b4 {[%clk 0:03:03]}  Nxb4 {[%clk 0:03:01]} 11. cxb4 {[%clk 0:03:03]}  Bxb4+ {[%clk 0:03:01]} 12. Bd2 {[%clk 0:03:03]}  Bxd2+ {[%clk 0:03:02]} 13. Nxd2 {[%clk 0:03:02]}  b5 {[%clk 0:03:01]} 14. Nb2 {[%clk 0:03:01]}  Nb6 {[%clk 0:03:01]} 15. Be2 {[%clk 0:02:48]}  Nc4 {[%clk 0:03:01]} 16. Nxc4 {[%clk 0:02:37]}  bxc4 {[%clk 0:02:56]} 17. O-O {[%clk 0:02:36]}  d3 {[%clk 0:02:52]} 18. Bf3 {[%clk 0:02:34]}  O-O {[%clk 0:02:51]} 19. Kh1 {[%clk 0:02:30]}  Bd7 {[%clk 0:02:47]} 20. g4 {[%clk 0:02:24]}  Rab8 {[%clk 0:02:44]} 21. Rf2 {[%clk 0:02:22]}  Ba4 {[%clk 0:02:11]} 22. Qf1 {[%clk 0:02:09]}  Qc5 {[%clk 0:01:51]} 23. f5 {[%clk 0:02:04]}  c3 {[%clk 0:01:49]} 24. Nb3 {[%clk 0:01:56]}  Bxb3 {[%clk 0:01:49]} 25. axb3 {[%clk 0:01:57]}  Rxb3 {[%clk 0:01:31]} 26. Rfa2 {[%clk 0:01:55]}  c2 {[%clk 0:01:22]} 27. Ra5 {[%clk 0:01:28]}  Qe3 {[%clk 0:01:17]} 28. Kg2 {[%clk 0:01:12]}  d2 {[%clk 0:01:13]} 0-1


[Site "https://www.chess.com"]

[Event "Titled Tuesday Blitz March 28 Late 2023"]
[White "Pirvulescu, Ekaterina"]
[Black "Cuenca Jimenez, Jose Fernando"]
[WhiteFideId "13506374"]
[BlackFideId "2255570"]
[WhiteElo "2006"]
[BlackElo "2429"]
[Result "0-1"]
[Round "04"]
[TimeControl "180+2"]
[Date "2023.03.28"]
[WhiteClock "0:00:33"]
[BlackClock "0:00:37"]

1. e4 {[%clk 0:02:56]}  d6 {[%clk 0:03:00]} 2. d4 {[%clk 0:02:52]}  Nf6 {[%clk 0:03:00]} 3. Nc3 {[%clk 0:02:50]}  e5 {[%clk 0:03:00]} 4. Nf3 {[%clk 0:02:41]}  Nbd7 {[%clk 0:02:59]} 5. Bc4 {[%clk 0:02:36]}  Be7 {[%clk 0:02:59]} 6. a4 {[%clk 0:02:33]}  O-O {[%clk 0:02:59]} 7. O-O {[%clk 0:02:33]}  c6 {[%clk 0:03:00]} 8. a5 {[%clk 0:02:33]}  Rb8 {[%clk 0:03:00]} 9. Re1 {[%clk 0:02:31]}  b5 {[%clk 0:03:00]} 10. axb6 {[%clk 0:02:28]}  axb6 {[%clk 0:03:00]} 11. d5 {[%clk 0:02:19]}  b5 {[%clk 0:02:56]} 12. dxc6 {[%clk 0:02:06]}  bxc4 {[%clk 0:02:54]} 13. cxd7 {[%clk 0:02:06]}  Bxd7 {[%clk 0:02:55]} 14. Nd5 {[%clk 0:01:59]}  Nxd5 {[%clk 0:02:52]} 15. Qxd5 {[%clk 0:01:51]}  Be6 {[%clk 0:02:52]} 16. Qd1 {[%clk 0:01:49]}  Qc7 {[%clk 0:02:39]} 17. c3 {[%clk 0:01:47]}  f6 {[%clk 0:02:31]} 18. Qe2 {[%clk 0:01:34]}  d5 {[%clk 0:02:23]} 19. exd5 {[%clk 0:01:32]}  Bxd5 {[%clk 0:02:24]} 20. Be3 {[%clk 0:01:29]}  Rb7 {[%clk 0:02:21]} 21. Red1 {[%clk 0:01:14]}  Be6 {[%clk 0:02:01]} 22. Ra2 {[%clk 0:01:05]}  Bf5 {[%clk 0:01:56]} 23. Nd2 {[%clk 0:00:59]}  Bd3 {[%clk 0:01:53]} 24. Qf3 {[%clk 0:00:57]}  Rfb8 {[%clk 0:01:50]} 25. h3 {[%clk 0:00:52]}  Rxb2 {[%clk 0:01:34]} 26. Ra7 {[%clk 0:00:48]}  R2b7 {[%clk 0:01:31]} 27. Rda1 {[%clk 0:00:47]}  h6 {[%clk 0:01:11]} 28. Rxb7 {[%clk 0:00:44]}  Qxb7 {[%clk 0:01:12]} 29. Qxb7 {[%clk 0:00:38]}  Rxb7 {[%clk 0:01:12]} 30. Ra8+ {[%clk 0:00:37]}  Kf7 {[%clk 0:01:11]} 31. Rc8 {[%clk 0:00:36]}  Ke6 {[%clk 0:00:41]} 32. Nxc4 {[%clk 0:00:33]}  Kd7 {[%clk 0:00:37]} 0-1


[Site "https://www.chess.com"]

[Event "Titled Tuesday Blitz March 28 Late 2023"]
[White "Rose, Felix"]
[Black "Sarana, Alexey"]
[WhiteFideId "5105722"]
[BlackFideId "24133795"]
[WhiteElo "2039"]
[BlackElo "2714"]
[Result "0-1"]
[Round "04"]
[TimeControl "180+2"]
[Date "2023.03.28"]
[WhiteClock "0:00:09"]
[BlackClock "0:01:32"]

1. e4 {[%clk 0:02:59]}  e5 {[%clk 0:02:36]} 2. Nf3 {[%clk 0:02:59]}  Nc6 {[%clk 0:02:36]} 3. Bc4 {[%clk 0:02:58]}  Nf6 {[%clk 0:02:37]} 4. d3 {[%clk 0:02:58]}  d5 {[%clk 0:02:37]} 5. exd5 {[%clk 0:02:57]}  Nxd5 {[%clk 0:02:38]} 6. O-O {[%clk 0:02:55]}  Bg4 {[%clk 0:02:37]} 7. h3 {[%clk 0:02:54]}  Bh5 {[%clk 0:02:37]} 8. Re1 {[%clk 0:02:53]}  Qd6 {[%clk 0:02:37]} 9. g4 {[%clk 0:02:49]}  Bg6 {[%clk 0:02:37]} 10. d4 {[%clk 0:02:46]}  O-O-O {[%clk 0:02:20]} 11. dxe5 {[%clk 0:02:39]}  Qc5 {[%clk 0:02:20]} 12. Qe2 {[%clk 0:02:25]}  h5 {[%clk 0:02:11]} 13. c3 {[%clk 0:02:10]}  hxg4 {[%clk 0:02:09]} 14. hxg4 {[%clk 0:02:10]}  Be7 {[%clk 0:02:01]} 15. b4 {[%clk 0:02:00]}  Qb6 {[%clk 0:02:00]} 16. Bxd5 {[%clk 0:01:56]}  Rxd5 {[%clk 0:02:00]} 17. Be3 {[%clk 0:01:56]}  Qa6 {[%clk 0:02:00]} 18. Qxa6 {[%clk 0:01:35]}  bxa6 {[%clk 0:02:01]} 19. Bf4 {[%clk 0:01:16]}  Rd3 {[%clk 0:02:00]} 20. Kg2 {[%clk 0:01:05]}  a5 {[%clk 0:01:47]} 21. a3 {[%clk 0:01:04]}  Nd8 {[%clk 0:01:45]} 22. Nbd2 {[%clk 0:00:47]}  Ne6 {[%clk 0:01:44]} 23. Be3 {[%clk 0:00:44]}  Rxc3 {[%clk 0:01:44]} 24. bxa5 {[%clk 0:00:37]}  a6 {[%clk 0:01:44]} 25. Rec1 {[%clk 0:00:32]}  Rxc1 {[%clk 0:01:44]} 26. Rxc1 {[%clk 0:00:32]}  Bxa3 {[%clk 0:01:45]} 27. Rc4 {[%clk 0:00:24]}  Rd8 {[%clk 0:01:43]} 28. Ne4 {[%clk 0:00:16]}  Rd5 {[%clk 0:01:41]} 29. Nd6+ {[%clk 0:00:14]}  Kd7 {[%clk 0:01:39]} 30. Nf5 {[%clk 0:00:10]}  Rxa5 {[%clk 0:01:38]} 31. Nxg7 {[%clk 0:00:11]}  Nxg7 {[%clk 0:01:38]} 32. Nd4 {[%clk 0:00:10]}  Ne6 {[%clk 0:01:37]} 33. Nf5 {[%clk 0:00:09]}  Bf8 {[%clk 0:01:34]} 34. f4 {[%clk 0:00:09]}  Ra3 {[%clk 0:01:34]} 35. Kf3 {[%clk 0:00:09]}  Bc5 {[%clk 0:01:33]} 36. Ke4 {[%clk 0:00:09]}  Rxe3+ {[%clk 0:01:32]} 37. Kd5 {[%clk 0:00:09]}  c6# {[%clk 0:01:32]} 0-1


[Site "https://www.chess.com"]

[Event "Titled Tuesday Blitz March 28 Late 2023"]
[White "Gokerkan, Cem Kaan"]
[Black "Klenburg, Michael"]
[WhiteFideId "6336760"]
[BlackFideId "14102072"]
[WhiteElo "2365"]
[BlackElo "2396"]
[Result "0-1"]
[Round "04"]
[TimeControl "180+2"]
[Date "2023.03.28"]
[WhiteClock "0:00:01"]
[BlackClock "0:00:09"]

1. e4 {[%clk 0:03:00]}  d6 {[%clk 0:02:59]} 2. d4 {[%clk 0:03:01]}  Nf6 {[%clk 0:02:59]} 3. Nc3 {[%clk 0:03:01]}  g6 {[%clk 0:02:59]} 4. Be3 {[%clk 0:03:01]}  c6 {[%clk 0:02:58]} 5. Qd2 {[%clk 0:03:01]}  Nbd7 {[%clk 0:02:58]} 6. O-O-O {[%clk 0:03:01]}  b5 {[%clk 0:02:53]} 7. f3 {[%clk 0:02:51]}  Qa5 {[%clk 0:02:51]} 8. Kb1 {[%clk 0:02:51]}  Bg7 {[%clk 0:02:51]} 9. Bh6 {[%clk 0:02:48]}  Bxh6 {[%clk 0:02:49]} 10. Qxh6 {[%clk 0:02:49]}  Nb6 {[%clk 0:02:49]} 11. e5 {[%clk 0:02:41]}  Nfd5 {[%clk 0:02:48]} 12. Nxd5 {[%clk 0:02:18]}  Nxd5 {[%clk 0:02:47]} 13. Qg7 {[%clk 0:02:11]}  Rf8 {[%clk 0:02:46]} 14. Ne2 {[%clk 0:02:06]}  Be6 {[%clk 0:02:43]} 15. Nc1 {[%clk 0:02:06]}  dxe5 {[%clk 0:02:17]} 16. dxe5 {[%clk 0:02:00]}  O-O-O {[%clk 0:02:14]} 17. Bd3 {[%clk 0:01:48]}  h5 {[%clk 0:01:58]} 18. Nb3 {[%clk 0:01:44]}  Qb6 {[%clk 0:01:55]} 19. Qh6 {[%clk 0:01:23]}  a5 {[%clk 0:01:36]} 20. Be4 {[%clk 0:01:15]}  c5 {[%clk 0:01:09]} 21. Bxd5 {[%clk 0:01:05]}  Bxd5 {[%clk 0:01:05]} 22. Qe3 {[%clk 0:01:05]}  Bxb3 {[%clk 0:01:02]} 23. axb3 {[%clk 0:00:59]}  Qc6 {[%clk 0:00:54]} 24. Rd3 {[%clk 0:00:49]}  Rxd3 {[%clk 0:00:52]} 25. cxd3 {[%clk 0:00:50]}  Kb7 {[%clk 0:00:46]} 26. Rc1 {[%clk 0:00:49]}  Rc8 {[%clk 0:00:46]} 27. g4 {[%clk 0:00:39]}  Qd5 {[%clk 0:00:40]} 28. Rc3 {[%clk 0:00:35]}  Kb6 {[%clk 0:00:27]} 29. gxh5 {[%clk 0:00:31]}  gxh5 {[%clk 0:00:26]} 30. f4 {[%clk 0:00:15]}  Rg8 {[%clk 0:00:20]} 31. f5 {[%clk 0:00:10]}  Rg2 {[%clk 0:00:18]} 32. Ka2 {[%clk 0:00:08]}  a4 {[%clk 0:00:17]} 33. Qh6+ {[%clk 0:00:07]}  Ka5 {[%clk 0:00:14]} 34. Qf8 {[%clk 0:00:08]}  Kb4 {[%clk 0:00:13]} 35. Qh6 {[%clk 0:00:01]}  axb3+ {[%clk 0:00:12]} 36. Ka1 {[%clk 0:00:01]}  Qa8+ {[%clk 0:00:10]} 37. Kb1 {[%clk 0:00:01]}  Qa2+ {[%clk 0:00:09]} 38. Kc1 {[%clk 0:00:01]}  Qa1# {[%clk 0:00:09]} 0-1


[Site "https://www.chess.com"]

[Event "Titled Tuesday Blitz March 28 Late 2023"]
[White "Urbina Perez, Juan Antonio"]
[Black "Melikyan, Gnel"]
[WhiteFideId "2217368"]
[BlackFideId "54109990"]
[WhiteElo "2197"]
[BlackElo "2138"]
[Result "1-0"]
[Round "04"]
[TimeControl "180+2"]
[Date "2023.03.28"]
[WhiteClock "0:00:01"]
[BlackClock "0:00:08"]

1. d4 {[%clk 0:02:58]}  Na6 {[%clk 0:02:51]} 2. Nf3 {[%clk 0:02:54]}  c5 {[%clk 0:02:50]} 3. d5 {[%clk 0:02:52]}  d6 {[%clk 0:02:47]} 4. a4 {[%clk 0:02:49]}  Nc7 {[%clk 0:02:47]} 5. Nc3 {[%clk 0:02:48]}  b6 {[%clk 0:02:46]} 6. e4 {[%clk 0:02:48]}  a6 {[%clk 0:02:46]} 7. Nd2 {[%clk 0:02:47]}  Bd7 {[%clk 0:02:45]} 8. Bd3 {[%clk 0:02:44]}  b5 {[%clk 0:02:44]} 9. O-O {[%clk 0:02:41]}  g6 {[%clk 0:02:43]} 10. f4 {[%clk 0:02:38]}  Bg7 {[%clk 0:02:43]} 11. Nf3 {[%clk 0:02:37]}  Nf6 {[%clk 0:02:36]} 12. e5 {[%clk 0:02:29]}  Nfxd5 {[%clk 0:02:36]} 13. Nxd5 {[%clk 0:02:22]}  Nxd5 {[%clk 0:02:36]} 14. exd6 {[%clk 0:02:22]}  e6 {[%clk 0:02:33]} 15. Be4 {[%clk 0:02:16]}  Bc6 {[%clk 0:02:32]} 16. Ne5 {[%clk 0:02:12]}  Qxd6 {[%clk 0:02:20]} 17. axb5 {[%clk 0:02:10]}  axb5 {[%clk 0:02:18]} 18. Rxa8+ {[%clk 0:02:09]}  Bxa8 {[%clk 0:02:19]} 19. c4 {[%clk 0:02:07]}  bxc4 {[%clk 0:02:18]} 20. Qa4+ {[%clk 0:02:04]}  Ke7 {[%clk 0:02:10]} 21. Nxc4 {[%clk 0:01:27]}  Bd4+ {[%clk 0:02:08]} 22. Kh1 {[%clk 0:01:25]}  Qd7 {[%clk 0:02:04]} 23. Qd1 {[%clk 0:01:10]}  f6 {[%clk 0:01:22]} 24. Qe2 {[%clk 0:00:44]}  Kf7 {[%clk 0:01:12]} 25. Re1 {[%clk 0:00:43]}  Rb8 {[%clk 0:01:08]} 26. h4 {[%clk 0:00:27]}  h5 {[%clk 0:00:35]} 27. Qc2 {[%clk 0:00:25]}  f5 {[%clk 0:00:33]} 28. Bf3 {[%clk 0:00:25]}  Nb4 {[%clk 0:00:30]} 29. Qe2 {[%clk 0:00:22]}  Bxf3 {[%clk 0:00:25]} 30. Qxf3 {[%clk 0:00:23]}  Qd5 {[%clk 0:00:26]} 31. Qe2 {[%clk 0:00:22]}  Nc6 {[%clk 0:00:25]} 32. Be3 {[%clk 0:00:19]}  Rb3 {[%clk 0:00:22]} 33. Bxd4 {[%clk 0:00:17]}  Rh3+ {[%clk 0:00:18]} 34. Kg1 {[%clk 0:00:11]}  Qxd4+ {[%clk 0:00:19]} 35. Ne3 {[%clk 0:00:10]}  Rxh4 {[%clk 0:00:16]} 36. g3 {[%clk 0:00:09]}  Rg4 {[%clk 0:00:13]} 37. Kh2 {[%clk 0:00:09]}  Nd8 {[%clk 0:00:09]} 38. Nxg4 {[%clk 0:00:09]}  hxg4 {[%clk 0:00:09]} 39. Qc2 {[%clk 0:00:06]}  Nc6 {[%clk 0:00:08]} 40. Rd1 {[%clk 0:00:06]}  Qh8+ {[%clk 0:00:08]} 41. Kg2 {[%clk 0:00:06]}  Qa8 {[%clk 0:00:07]} 42. Kg1 {[%clk 0:00:04]}  Nd4 {[%clk 0:00:08]} 43. Qxc5 {[%clk 0:00:03]}  Ne2+ {[%clk 0:00:07]} 44. Kf1 {[%clk 0:00:01]}  Qf3+ {[%clk 0:00:08]} 45. Ke1 {[%clk 0:00:02]}  Nxg3 {[%clk 0:00:08]} 46. Rd7+ {[%clk 0:00:01]}  Kg8 {[%clk 0:00:08]} 47. Qc8# {[%clk 0:00:01]} 1-0


[Site "https://www.chess.com"]

[Event "Titled Tuesday Blitz March 28 Late 2023"]
[White "Gatterer, Florian"]
[Black "Kavutskiy, Konstantin"]
[WhiteFideId "811688"]
[BlackFideId "2026384"]
[WhiteElo "2221"]
[BlackElo "2369"]
[Result "1/2-1/2"]
[Round "04"]
[TimeControl "180+2"]
[Date "2023.03.28"]
[WhiteClock "0:00:05"]
[BlackClock "0:00:11"]

1. d4 {[%clk 0:03:00]}  Nf6 {[%clk 0:02:59]} 2. Nf3 {[%clk 0:02:59]}  g6 {[%clk 0:02:59]} 3. g3 {[%clk 0:02:56]}  Bg7 {[%clk 0:03:00]} 4. Bg2 {[%clk 0:02:57]}  O-O {[%clk 0:03:00]} 5. O-O {[%clk 0:02:57]}  d6 {[%clk 0:03:01]} 6. a4 {[%clk 0:02:55]}  a5 {[%clk 0:02:58]} 7. Nc3 {[%clk 0:02:54]}  d5 {[%clk 0:02:57]} 8. Bf4 {[%clk 0:02:51]}  c6 {[%clk 0:02:48]} 9. h3 {[%clk 0:02:49]}  Na6 {[%clk 0:02:41]} 10. Ne5 {[%clk 0:02:43]}  h5 {[%clk 0:02:35]} 11. Kh2 {[%clk 0:02:41]}  Bf5 {[%clk 0:02:35]} 12. Qd2 {[%clk 0:02:35]}  Nb4 {[%clk 0:02:27]} 13. Rac1 {[%clk 0:02:34]}  Nd7 {[%clk 0:02:26]} 14. Nxd7 {[%clk 0:02:23]}  Qxd7 {[%clk 0:02:26]} 15. f3 {[%clk 0:02:12]}  Be6 {[%clk 0:01:59]} 16. g4 {[%clk 0:02:09]}  h4 {[%clk 0:01:27]} 17. Bh6 {[%clk 0:02:07]}  Qd6+ {[%clk 0:01:17]} 18. Bf4 {[%clk 0:02:04]}  Qd7 {[%clk 0:01:17]} 19. Bh6 {[%clk 0:02:04]}  Rfe8 {[%clk 0:01:17]} 20. Bxg7 {[%clk 0:02:01]}  Kxg7 {[%clk 0:01:18]} 21. f4 {[%clk 0:02:02]}  f6 {[%clk 0:01:15]} 22. e3 {[%clk 0:01:41]}  Bf7 {[%clk 0:01:10]} 23. Qf2 {[%clk 0:01:31]}  Rh8 {[%clk 0:01:09]} 24. e4 {[%clk 0:01:26]}  dxe4 {[%clk 0:01:06]} 25. Nxe4 {[%clk 0:01:25]}  Rad8 {[%clk 0:00:49]} 26. Rcd1 {[%clk 0:01:21]}  b6 {[%clk 0:00:47]} 27. c3 {[%clk 0:01:16]}  Nd5 {[%clk 0:00:44]} 28. Kh1 {[%clk 0:01:15]}  Nc7 {[%clk 0:00:41]} 29. Nd2 {[%clk 0:01:14]}  Bd5 {[%clk 0:00:41]} 30. Nf3 {[%clk 0:01:14]}  Ne6 {[%clk 0:00:40]} 31. f5 {[%clk 0:00:48]}  Bxf3 {[%clk 0:00:34]} 32. Bxf3 {[%clk 0:00:40]}  Ng5 {[%clk 0:00:34]} 33. Bg2 {[%clk 0:00:38]}  Qd6 {[%clk 0:00:31]} 34. fxg6 {[%clk 0:00:36]}  Qg3 {[%clk 0:00:28]} 35. Rde1 {[%clk 0:00:30]}  Rd7 {[%clk 0:00:15]} 36. Qxg3 {[%clk 0:00:20]}  hxg3 {[%clk 0:00:14]} 37. Kg1 {[%clk 0:00:18]}  Nxh3+ {[%clk 0:00:15]} 38. Bxh3 {[%clk 0:00:18]}  Rxh3 {[%clk 0:00:15]} 39. Kg2 {[%clk 0:00:10]}  Rh2+ {[%clk 0:00:15]} 40. Kxg3 {[%clk 0:00:11]}  Rxb2 {[%clk 0:00:16]} 41. Rf2 {[%clk 0:00:11]}  Rb3 {[%clk 0:00:16]} 42. Re3 {[%clk 0:00:11]}  Kxg6 {[%clk 0:00:15]} 43. Rff3 {[%clk 0:00:10]}  Rb2 {[%clk 0:00:15]} 44. Kf4 {[%clk 0:00:10]}  Ra2 {[%clk 0:00:15]} 45. g5 {[%clk 0:00:07]}  Rxa4 {[%clk 0:00:12]} 46. gxf6 {[%clk 0:00:05]}  exf6 {[%clk 0:00:13]} 47. Rg3+ {[%clk 0:00:06]}  Kf7 {[%clk 0:00:13]} 48. Rh3 {[%clk 0:00:05]}  Rd8 {[%clk 0:00:11]} 49. Rh7+ {[%clk 0:00:05]}  Kg6 {[%clk 0:00:11]} 50. Reh3 {[%clk 0:00:05]} 1/2-1/2


[Site "https://www.chess.com"]